[Event "Early-Titled-Tuesday-Blitz-January-23-2024"]
[Site "Chess.com"]
[Date "2024.01.23"]
[Round "7"]
[White "Chessdreamer2020"]
[Black "Kopytkin"]
[Result "1-0"]
[WhiteElo "2549"]
[BlackElo "2406"]
[TimeControl "180+1"]
[EndTime "9:17:16 PST"]
[Termination "Chessdreamer2020 won on time"]

1. e4 {[%clk 0:03:00]} 1... Nf6 {[%clk 0:02:57.8]} 2. Nc3 {[%clk 0:02:59]} 2...
d5 {[%clk 0:02:57.2]} 3. e5 {[%clk 0:02:59.2]} 3... Ne4 {[%clk 0:02:57.3]} 4.
Nce2 {[%clk 0:02:58.7]} 4... f6 {[%clk 0:02:51.1]} 5. d3 {[%clk 0:02:58.4]} 5...
Ng5 {[%clk 0:02:51.2]} 6. Bxg5 {[%clk 0:02:58.2]} 6... fxg5 {[%clk 0:02:51.3]}
7. h4 {[%clk 0:02:58.7]} 7... g4 {[%clk 0:02:51.1]} 8. Nf4 {[%clk 0:02:52.7]}
8... c5 {[%clk 0:02:32.5]} 9. Be2 {[%clk 0:02:45.4]} 9... Nc6 {[%clk 0:02:30]}
10. Bxg4 {[%clk 0:02:45.3]} 10... Nxe5 {[%clk 0:02:26.2]} 11. Bxc8 {[%clk
0:02:44.1]} 11... Rxc8 {[%clk 0:02:20.1]} 12. Qh5+ {[%clk 0:02:43.8]} 12... Nf7
{[%clk 0:02:13.7]} 13. Nxd5 {[%clk 0:02:32.2]} 13... g6 {[%clk 0:02:01.3]} 14.
Qf3 {[%clk 0:02:31.2]} 14... Bg7 {[%clk 0:01:54.9]} 15. Nc3 {[%clk 0:02:28.5]}
15... O-O {[%clk 0:01:52.2]} 16. Nge2 {[%clk 0:02:28]} 16... b5 {[%clk
0:01:30.4]} 17. h5 {[%clk 0:01:59.3]} 17... b4 {[%clk 0:01:18.8]} 18. Ne4 {[%clk
0:01:58.8]} 18... Bxb2 {[%clk 0:01:01]} 19. Rb1 {[%clk 0:01:58.2]} 19... Bg7
{[%clk 0:00:42.9]} 20. hxg6 {[%clk 0:01:57]} 20... hxg6 {[%clk 0:00:42.9]} 21.
Qh3 {[%clk 0:01:57.5]} 21... Nh6 {[%clk 0:00:41.3]} 22. Qe6+ {[%clk 0:01:52.5]}
22... Kh8 {[%clk 0:00:26.2]} 23. Qxg6 {[%clk 0:01:52.4]} 23... Qb6 {[%clk
0:00:19.4]} 24. Qg4 {[%clk 0:01:12.7]} 24... c4 {[%clk 0:00:13.1]} 25. Nf4
{[%clk 0:01:10.2]} 25... Rxf4 {[%clk 0:00:09.6]} 26. Qxf4 {[%clk 0:01:09.6]}
26... Rf8 {[%clk 0:00:09.4]} 27. Qe3 {[%clk 0:01:08]} 27... Qa5 {[%clk
0:00:06.5]} 28. Rxh6+ {[%clk 0:01:06.8]} 28... Bxh6 {[%clk 0:00:06.1]} 29. Qxh6+
{[%clk 0:01:07.7]} 29... Kg8 {[%clk 0:00:06.6]} 30. Qg5+ {[%clk 0:01:04]} 30...
Qxg5 {[%clk 0:00:05.7]} 31. Nxg5 {[%clk 0:01:04.9]} 31... a5 {[%clk 0:00:05]}
32. dxc4 {[%clk 0:01:04.7]} 32... Rc8 {[%clk 0:00:05]} 33. Rd1 {[%clk
0:01:01.4]} 33... Rxc4 {[%clk 0:00:04.6]} 34. Rd2 {[%clk 0:01:00.9]} 34... Kg7
{[%clk 0:00:03.4]} 35. Nf3 {[%clk 0:01:00.7]} 35... Kf6 {[%clk 0:00:03.3]} 36.
Kd1 {[%clk 0:01:01.2]} 36... e5 {[%clk 0:00:01.8]} 37. Rd5 {[%clk 0:01:01.3]}
37... Kf5 {[%clk 0:00:02.3]} 38. Rxe5+ {[%clk 0:01:01.2]} 38... Kf4 {[%clk
0:00:02.9]} 39. Rxa5 {[%clk 0:01:01.5]} 39... b3 {[%clk 0:00:02.9]} 40. axb3
{[%clk 0:01:01.5]} 40... Re4 {[%clk 0:00:02.9]} 41. Ra4 {[%clk 0:01:01.5]} 41...
Rxa4 {[%clk 0:00:01.5]} 42. bxa4 {[%clk 0:01:02.4]} 42... Ke4 {[%clk 0:00:01.9]}
43. a5 {[%clk 0:01:03.3]} 43... Kd5 {[%clk 0:00:02.4]} 44. g4 {[%clk 0:01:04.2]}
44... Kc6 {[%clk 0:00:02.8]} 45. g5 {[%clk 0:01:05.1]} 1-0

[Event "Early-Titled-Tuesday-Blitz-January-23-2024"]
[Site "Chess.com"]
[Date "2024.01.23"]
[Round "7"]
[White "BeardedNM"]
[Black "dianamirza"]
[Result "0-1"]
[WhiteElo "2198"]
[BlackElo "1996"]
[TimeControl "180+1"]
[EndTime "9:17:17 PST"]
[Termination "dianamirza won by resignation"]

1. e4 {[%clk 0:03:00.9]} 1... d5 {[%clk 0:02:59.4]} 2. exd5 {[%clk 0:03:00.9]}
2... Qxd5 {[%clk 0:03:00.3]} 3. Nc3 {[%clk 0:03:00.8]} 3... Qd8 {[%clk
0:03:01.2]} 4. d4 {[%clk 0:03:01.3]} 4... Nf6 {[%clk 0:03:02.1]} 5. Nf3 {[%clk
0:03:01.8]} 5... Bg4 {[%clk 0:03:02.7]} 6. h3 {[%clk 0:03:00.7]} 6... Bxf3
{[%clk 0:03:03.1]} 7. Qxf3 {[%clk 0:03:01.5]} 7... c6 {[%clk 0:03:04]} 8. g4
{[%clk 0:03:00.5]} 8... Qxd4 {[%clk 0:03:03.3]} 9. g5 {[%clk 0:03:00.6]} 9...
Nd5 {[%clk 0:02:56.2]} 10. Bd2 {[%clk 0:02:57.6]} 10... Nd7 {[%clk 0:02:49.4]}
11. O-O-O {[%clk 0:02:57.3]} 11... Ne5 {[%clk 0:02:44.7]} 12. Qg2 {[%clk
0:02:46]} 12... O-O-O {[%clk 0:02:10.5]} 13. h4 {[%clk 0:02:05.6]} 13... Nxc3
{[%clk 0:02:06.6]} 14. bxc3 {[%clk 0:02:05.6]} 14... Qa4 {[%clk 0:02:03.3]} 15.
Kb1 {[%clk 0:01:50.5]} 15... e6 {[%clk 0:01:59.2]} 16. f4 {[%clk 0:01:23.1]}
16... Nc4 {[%clk 0:01:54.2]} 17. Bxc4 {[%clk 0:01:15.2]} 17... Qxc4 {[%clk
0:01:55.1]} 18. Bc1 {[%clk 0:00:56.4]} 18... Bd6 {[%clk 0:01:11.8]} 19. f5
{[%clk 0:00:51.3]} 19... exf5 {[%clk 0:01:05.5]} 20. Qf3 {[%clk 0:00:50.8]}
20... Qe4 {[%clk 0:01:02]} 21. Qh5 {[%clk 0:00:43.4]} 21... g6 {[%clk
0:00:56.8]} 22. Qh6 {[%clk 0:00:43]} 22... Be5 {[%clk 0:00:46.5]} 23. Rhe1
{[%clk 0:00:32.7]} 23... Rxd1 {[%clk 0:00:28.2]} 24. Rxe4 {[%clk 0:00:10.2]}
24... fxe4 {[%clk 0:00:29.1]} 25. Kb2 {[%clk 0:00:10.6]} 25... b5 {[%clk
0:00:12.2]} 26. h5 {[%clk 0:00:10.5]} 26... Rh1 {[%clk 0:00:10.9]} 27. Be3
{[%clk 0:00:07.6]} 27... Rxh5 {[%clk 0:00:10.1]} 0-1

[Event "Early-Titled-Tuesday-Blitz-January-23-2024"]
[Site "Chess.com"]
[Date "2024.01.23"]
[Round "7"]
[White "sergeikim"]
[Black "Saraisitave"]
[Result "1-0"]
[WhiteElo "2514"]
[BlackElo "2322"]
[TimeControl "180+1"]
[EndTime "9:17:18 PST"]
[Termination "sergeikim won on time"]

1. d4 {[%clk 0:02:57.2]} 1... d5 {[%clk 0:02:53.9]} 2. c4 {[%clk 0:02:57.1]}
2... Nf6 {[%clk 0:02:54.3]} 3. Nc3 {[%clk 0:02:57.3]} 3... c6 {[%clk 0:02:54.7]}
4. e3 {[%clk 0:02:56.6]} 4... g6 {[%clk 0:02:54]} 5. Bd3 {[%clk 0:02:56.4]} 5...
Bg7 {[%clk 0:02:54]} 6. Nf3 {[%clk 0:02:56.5]} 6... O-O {[%clk 0:02:50.9]} 7.
O-O {[%clk 0:02:55.7]} 7... Nbd7 {[%clk 0:02:49.3]} 8. Qc2 {[%clk 0:02:51.3]}
8... dxc4 {[%clk 0:02:48.5]} 9. Bxc4 {[%clk 0:02:51.1]} 9... b5 {[%clk
0:02:48.9]} 10. Bb3 {[%clk 0:02:48.1]} 10... a6 {[%clk 0:02:47.1]} 11. e4 {[%clk
0:02:45.6]} 11... Bb7 {[%clk 0:02:44.6]} 12. e5 {[%clk 0:02:42.8]} 12... Nd5
{[%clk 0:02:44.5]} 13. Nxd5 {[%clk 0:02:38.9]} 13... cxd5 {[%clk 0:02:44.2]} 14.
Bf4 {[%clk 0:02:36.9]} 14... Rc8 {[%clk 0:02:42.7]} 15. Qd2 {[%clk 0:02:36.8]}
15... e6 {[%clk 0:02:41.4]} 16. Bh6 {[%clk 0:02:36.4]} 16... Nb6 {[%clk
0:02:39.2]} 17. Bxg7 {[%clk 0:02:35.5]} 17... Kxg7 {[%clk 0:02:39.1]} 18. Qf4
{[%clk 0:02:34]} 18... a5 {[%clk 0:02:27.9]} 19. h4 {[%clk 0:02:26.3]} 19... a4
{[%clk 0:02:12.9]} 20. Bd1 {[%clk 0:02:25.6]} 20... f6 {[%clk 0:02:04.8]} 21. h5
{[%clk 0:02:18.6]} 21... fxe5 {[%clk 0:02:02.8]} 22. Qxe5+ {[%clk 0:02:18]}
22... Qf6 {[%clk 0:02:02.8]} 23. b3 {[%clk 0:02:11.5]} 23... Qxe5 {[%clk
0:01:49.1]} 24. Nxe5 {[%clk 0:02:09.1]} 24... a3 {[%clk 0:01:48.6]} 25. Be2
{[%clk 0:02:05.1]} 25... Rf4 {[%clk 0:01:33.8]} 26. Rfd1 {[%clk 0:02:01]} 26...
b4 {[%clk 0:01:26.9]} 27. g3 {[%clk 0:01:59.8]} 27... Rf5 {[%clk 0:01:22.2]} 28.
Rac1 {[%clk 0:01:57.3]} 28... Rff8 {[%clk 0:01:05.4]} 29. Rc5 {[%clk 0:01:47.4]}
29... gxh5 {[%clk 0:00:51.4]} 30. Bxh5 {[%clk 0:01:40]} 30... Kf6 {[%clk
0:00:43.8]} 31. Rb5 {[%clk 0:01:34.4]} 31... Kg5 {[%clk 0:00:15.9]} 32. Rxb6
{[%clk 0:01:30.5]} 32... Kxh5 {[%clk 0:00:12.7]} 33. Rxb7 {[%clk 0:01:30.4]}
33... Rc2 {[%clk 0:00:12.7]} 34. Rxh7+ {[%clk 0:01:07.8]} 34... Kg5 {[%clk
0:00:11.3]} 35. Rg7+ {[%clk 0:01:00.6]} 35... Kf6 {[%clk 0:00:08.6]} 36. Rh7
{[%clk 0:00:49.5]} 36... Kg5 {[%clk 0:00:05.2]} 37. f4+ {[%clk 0:00:44.1]} 37...
Kf5 {[%clk 0:00:04.1]} 38. Re1 {[%clk 0:00:39.9]} 1-0

[Event "Early-Titled-Tuesday-Blitz-January-23-2024"]
[Site "Chess.com"]
[Date "2024.01.23"]
[Round "7"]
[White "djano"]
[Black "BogdanDeac"]
[Result "0-1"]
[WhiteElo "2686"]
[BlackElo "3075"]
[TimeControl "180+1"]
[EndTime "9:17:20 PST"]
[Termination "BogdanDeac won by resignation"]

1. e4 {[%clk 0:03:00.9]} 1... c6 {[%clk 0:03:00.1]} 2. d4 {[%clk 0:03:00.6]}
2... d5 {[%clk 0:03:01]} 3. exd5 {[%clk 0:03:01.4]} 3... cxd5 {[%clk 0:03:01.1]}
4. Bd3 {[%clk 0:03:02]} 4... Nf6 {[%clk 0:03:00.7]} 5. c3 {[%clk 0:03:01.1]}
5... Bg4 {[%clk 0:03:01.3]} 6. Qb3 {[%clk 0:03:00.9]} 6... Qc7 {[%clk
0:03:01.8]} 7. Ne2 {[%clk 0:02:52.6]} 7... Nc6 {[%clk 0:02:49.1]} 8. Bf4 {[%clk
0:02:48.1]} 8... Qd7 {[%clk 0:02:42.8]} 9. O-O {[%clk 0:02:44.3]} 9... e6 {[%clk
0:02:41.7]} 10. Nd2 {[%clk 0:02:38.9]} 10... Bh5 {[%clk 0:02:39.1]} 11. Rfe1
{[%clk 0:02:29.3]} 11... Bg6 {[%clk 0:02:38.7]} 12. Nc1 {[%clk 0:02:29.6]} 12...
Bd6 {[%clk 0:02:29.1]} 13. Bxd6 {[%clk 0:02:27.7]} 13... Qxd6 {[%clk 0:02:29.2]}
14. h3 {[%clk 0:02:28.3]} 14... Rb8 {[%clk 0:02:18.8]} 15. a4 {[%clk 0:02:27.7]}
15... Bxd3 {[%clk 0:02:06.1]} 16. Nxd3 {[%clk 0:02:27.5]} 16... O-O {[%clk
0:02:06.8]} 17. Qa3 {[%clk 0:02:22.9]} 17... Qc7 {[%clk 0:02:06.1]} 18. a5
{[%clk 0:02:18.5]} 18... Rfc8 {[%clk 0:02:03.5]} 19. Nc5 {[%clk 0:02:09.6]}
19... Re8 {[%clk 0:01:48.8]} 20. Re3 {[%clk 0:02:06.6]} 20... g6 {[%clk
0:01:38.3]} 21. b4 {[%clk 0:01:51.4]} 21... Rbc8 {[%clk 0:01:25.3]} 22. g3
{[%clk 0:01:37.6]} 22... b6 {[%clk 0:01:23.9]} 23. axb6 {[%clk 0:01:27.3]} 23...
axb6 {[%clk 0:01:24.8]} 24. Nd3 {[%clk 0:01:26]} 24... Nd7 {[%clk 0:01:23]} 25.
Qb2 {[%clk 0:01:08.9]} 25... Ne7 {[%clk 0:01:20.9]} 26. Nf4 {[%clk 0:01:04.1]}
26... Nf5 {[%clk 0:01:16.5]} 27. Rd3 {[%clk 0:01:04.5]} 27... Nf6 {[%clk
0:01:11.7]} 28. Rc1 {[%clk 0:00:59.2]} 28... Nd6 {[%clk 0:01:08.9]} 29. Ne2
{[%clk 0:00:50.1]} 29... Ra8 {[%clk 0:01:00.7]} 30. Kg2 {[%clk 0:00:44.9]} 30...
Ra7 {[%clk 0:00:57.9]} 31. Qb3 {[%clk 0:00:39.8]} 31... Nc4 {[%clk 0:00:45.2]}
32. Nf3 {[%clk 0:00:34.3]} 32... Rea8 {[%clk 0:00:40]} 33. Rb1 {[%clk
0:00:28.1]} 33... Ne4 {[%clk 0:00:29.6]} 34. Qd1 {[%clk 0:00:22.9]} 34... Ra2
{[%clk 0:00:28.4]} 35. Kg1 {[%clk 0:00:11.3]} 35... Nb2 {[%clk 0:00:27.5]} 36.
Qc2 {[%clk 0:00:10.2]} 36... Nxd3 {[%clk 0:00:25.7]} 37. Qxd3 {[%clk 0:00:10.5]}
37... Qc4 {[%clk 0:00:26.1]} 38. Qe3 {[%clk 0:00:10.3]} 38... Qxe2 {[%clk
0:00:25.5]} 0-1

[Event "Early-Titled-Tuesday-Blitz-January-23-2024"]
[Site "Chess.com"]
[Date "2024.01.23"]
[Round "7"]
[White "inneremptiness"]
[Black "LeRoidesChampions"]
[Result "0-1"]
[WhiteElo "2860"]
[BlackElo "2638"]
[TimeControl "180+1"]
[EndTime "9:17:20 PST"]
[Termination "LeRoidesChampions won on time"]

1. Nf3 {[%clk 0:02:58.4]} 1... Nf6 {[%clk 0:02:59.8]} 2. c4 {[%clk 0:02:57.8]}
2... g6 {[%clk 0:02:58]} 3. Nc3 {[%clk 0:02:57.4]} 3... Bg7 {[%clk 0:02:58.9]}
4. e4 {[%clk 0:02:57.8]} 4... O-O {[%clk 0:02:59.8]} 5. d4 {[%clk 0:02:58.5]}
5... d6 {[%clk 0:03:00.3]} 6. Be2 {[%clk 0:02:59.1]} 6... e5 {[%clk 0:02:59.9]}
7. O-O {[%clk 0:02:59.8]} 7... Nc6 {[%clk 0:03:00.5]} 8. d5 {[%clk 0:02:56.7]}
8... Ne7 {[%clk 0:03:00.4]} 9. b4 {[%clk 0:02:56.9]} 9... Ne8 {[%clk 0:03:00.1]}
10. c5 {[%clk 0:02:51.1]} 10... f5 {[%clk 0:03:00]} 11. Nd2 {[%clk 0:02:44.8]}
11... Nf6 {[%clk 0:02:59.2]} 12. f3 {[%clk 0:02:44.1]} 12... f4 {[%clk
0:02:59.6]} 13. Nc4 {[%clk 0:02:43.3]} 13... g5 {[%clk 0:03:00.2]} 14. Ba3
{[%clk 0:02:40.1]} 14... h5 {[%clk 0:02:54.8]} 15. cxd6 {[%clk 0:02:30.2]} 15...
cxd6 {[%clk 0:02:54]} 16. b5 {[%clk 0:02:26]} 16... Ne8 {[%clk 0:02:52.8]} 17.
b6 {[%clk 0:02:21.6]} 17... axb6 {[%clk 0:02:50.7]} 18. Nb5 {[%clk 0:02:21.7]}
18... Rf6 {[%clk 0:02:51.3]} 19. Rc1 {[%clk 0:02:17.3]} 19... Rh6 {[%clk
0:02:50]} 20. Qb3 {[%clk 0:02:09.8]} 20... g4 {[%clk 0:02:41.3]} 21. Qb4 {[%clk
0:02:00.9]} 21... Bf8 {[%clk 0:01:56.4]} 22. g3 {[%clk 0:01:48.3]} 22... Ng6
{[%clk 0:01:55]} 23. Nbxd6 {[%clk 0:01:15.8]} 23... Nxd6 {[%clk 0:01:51.7]} 24.
Nxd6 {[%clk 0:01:14.9]} 24... fxg3 {[%clk 0:01:40.6]} 25. hxg3 {[%clk
0:01:12.8]} 25... h4 {[%clk 0:01:41]} 26. Qe1 {[%clk 0:00:31.8]} 26... Bxd6
{[%clk 0:01:35.6]} 27. Bxd6 {[%clk 0:00:30.6]} 27... Qxd6 {[%clk 0:01:36.5]} 28.
Qd2 {[%clk 0:00:27.8]} 28... Kg7 {[%clk 0:01:28.4]} 29. Qg5 {[%clk 0:00:14.7]}
29... Bd7 {[%clk 0:01:12]} 30. f4 {[%clk 0:00:13.2]} 30... Qa3 {[%clk
0:00:48.9]} 31. fxe5 {[%clk 0:00:05.6]} 31... Qxg3+ {[%clk 0:00:48.1]} 32. Kh1
{[%clk 0:00:06.2]} 32... Qxe5 {[%clk 0:00:40.1]} 33. Qxe5+ {[%clk 0:00:04.1]}
33... Nxe5 {[%clk 0:00:39.9]} 34. Rc7 {[%clk 0:00:05]} 34... Rf6 {[%clk
0:00:37.5]} 0-1

[Event "Early-Titled-Tuesday-Blitz-January-23-2024"]
[Site "Chess.com"]
[Date "2024.01.23"]
[Round "7"]
[White "bazar-wokzal"]
[Black "enriquetejedor"]
[Result "0-1"]
[WhiteElo "2559"]
[BlackElo "2732"]
[TimeControl "180+1"]
[EndTime "9:17:20 PST"]
[Termination "enriquetejedor won by resignation"]

1. e4 {[%clk 0:03:00.9]} 1... e5 {[%clk 0:02:56.1]} 2. Bc4 {[%clk 0:03:00]} 2...
c6 {[%clk 0:02:55.6]} 3. Qh5 {[%clk 0:02:59]} 3... Qe7 {[%clk 0:02:55]} 4. Nf3
{[%clk 0:02:58.6]} 4... d6 {[%clk 0:02:55.1]} 5. Nc3 {[%clk 0:02:58.4]} 5... Nf6
{[%clk 0:02:54.3]} 6. Qh4 {[%clk 0:02:58.1]} 6... b5 {[%clk 0:02:54.6]} 7. Bb3
{[%clk 0:02:57.6]} 7... b4 {[%clk 0:02:54.6]} 8. Ne2 {[%clk 0:02:56.8]} 8... g6
{[%clk 0:02:51]} 9. d3 {[%clk 0:02:51.4]} 9... Nfd7 {[%clk 0:02:49.6]} 10. Qg3
{[%clk 0:02:39.1]} 10... Bg7 {[%clk 0:02:48.1]} 11. h4 {[%clk 0:02:38.9]} 11...
h5 {[%clk 0:02:47.6]} 12. Bg5 {[%clk 0:02:25.1]} 12... f6 {[%clk 0:02:46.5]} 13.
Be3 {[%clk 0:02:19.9]} 13... Nf8 {[%clk 0:02:47]} 14. O-O {[%clk 0:02:14.9]}
14... Bg4 {[%clk 0:02:44.1]} 15. d4 {[%clk 0:02:11.1]} 15... Nbd7 {[%clk
0:02:43.3]} 16. Rfd1 {[%clk 0:02:07]} 16... Bh6 {[%clk 0:02:41]} 17. Rd3 {[%clk
0:01:58]} 17... Be6 {[%clk 0:02:24.6]} 18. Rad1 {[%clk 0:01:42.7]} 18... Bxe3
{[%clk 0:02:21.1]} 19. Rxe3 {[%clk 0:01:32.1]} 19... a5 {[%clk 0:02:20.2]} 20.
Red3 {[%clk 0:01:20.3]} 20... Bxb3 {[%clk 0:01:14]} 21. axb3 {[%clk 0:01:19.5]}
21... Kf7 {[%clk 0:01:14]} 22. dxe5 {[%clk 0:01:17.5]} 22... dxe5 {[%clk
0:01:14.9]} 23. Rd6 {[%clk 0:01:10.9]} 23... Rc8 {[%clk 0:01:14.2]} 24. Qh3
{[%clk 0:01:03.4]} 24... Rc7 {[%clk 0:01:14.2]} 25. Ng3 {[%clk 0:00:56.9]} 25...
Nc5 {[%clk 0:01:13]} 26. Rd8 {[%clk 0:00:50.3]} 26... Rg8 {[%clk 0:01:10.4]} 27.
Ra8 {[%clk 0:00:47.5]} 27... Nfe6 {[%clk 0:01:07.6]} 28. Rxa5 {[%clk 0:00:45.7]}
28... Nf4 {[%clk 0:01:07.8]} 29. Qh2 {[%clk 0:00:45.2]} 29... Nce6 {[%clk
0:01:07.3]} 30. Nf1 {[%clk 0:00:36]} 30... Rd8 {[%clk 0:00:33.5]} 31. Raa1
{[%clk 0:00:34.6]} 31... Rcd7 {[%clk 0:00:33.3]} 32. Rxd7 {[%clk 0:00:31.8]}
32... Qxd7 {[%clk 0:00:33.7]} 33. Ne3 {[%clk 0:00:31.5]} 33... Nc5 {[%clk
0:00:29.3]} 34. g3 {[%clk 0:00:31.5]} 34... Nfe6 {[%clk 0:00:28]} 35. Rd1 {[%clk
0:00:26.3]} 35... Qxd1+ {[%clk 0:00:25.8]} 36. Nxd1 {[%clk 0:00:25.7]} 36...
Rxd1+ {[%clk 0:00:26.7]} 37. Kg2 {[%clk 0:00:26.1]} 37... Nxe4 {[%clk
0:00:27.6]} 38. Qh3 {[%clk 0:00:22.8]} 38... Rc1 {[%clk 0:00:25.8]} 39. g4
{[%clk 0:00:22.5]} 39... Nf4+ {[%clk 0:00:26.1]} 40. Kh2 {[%clk 0:00:23]} 40...
Nxh3 {[%clk 0:00:26.3]} 41. Kxh3 {[%clk 0:00:23.6]} 41... Rxc2 {[%clk
0:00:26.5]} 0-1

[Event "Early-Titled-Tuesday-Blitz-January-23-2024"]
[Site "Chess.com"]
[Date "2024.01.23"]
[Round "7"]
[White "biostatistician"]
[Black "alexrustemov"]
[Result "0-1"]
[WhiteElo "2611"]
[BlackElo "2890"]
[TimeControl "180+1"]
[EndTime "9:17:23 PST"]
[Termination "alexrustemov won on time"]

1. d4 {[%clk 0:03:00.1]} 1... d5 {[%clk 0:02:59.7]} 2. Nf3 {[%clk 0:02:59.4]}
2... Nf6 {[%clk 0:02:59.5]} 3. c4 {[%clk 0:02:59.7]} 3... dxc4 {[%clk
0:02:59.8]} 4. e3 {[%clk 0:02:59.6]} 4... e6 {[%clk 0:03:00]} 5. Bxc4 {[%clk
0:03:00]} 5... c5 {[%clk 0:03:00.5]} 6. O-O {[%clk 0:03:00.4]} 6... a6 {[%clk
0:03:00.7]} 7. b3 {[%clk 0:03:00.9]} 7... b6 {[%clk 0:02:58.1]} 8. Bb2 {[%clk
0:03:00.6]} 8... Bb7 {[%clk 0:02:56.8]} 9. Nc3 {[%clk 0:02:59.8]} 9... cxd4
{[%clk 0:02:51.8]} 10. exd4 {[%clk 0:02:55.1]} 10... b5 {[%clk 0:02:48.7]} 11.
Bd3 {[%clk 0:02:51.1]} 11... Be7 {[%clk 0:02:49.1]} 12. Qe2 {[%clk 0:02:48.9]}
12... O-O {[%clk 0:02:48.9]} 13. Rad1 {[%clk 0:02:48.9]} 13... Nc6 {[%clk
0:02:45.4]} 14. Bb1 {[%clk 0:02:42.7]} 14... Nb4 {[%clk 0:02:32.5]} 15. Ne5
{[%clk 0:02:38.3]} 15... Nbd5 {[%clk 0:02:31.6]} 16. f4 {[%clk 0:02:04.4]} 16...
Rc8 {[%clk 0:02:28.4]} 17. Nxd5 {[%clk 0:02:03.3]} 17... Bxd5 {[%clk 0:02:10]}
18. f5 {[%clk 0:02:00.9]} 18... Qd6 {[%clk 0:02:00.2]} 19. Rf4 {[%clk
0:01:44.9]} 19... exf5 {[%clk 0:01:57.7]} 20. Rxf5 {[%clk 0:01:44.2]} 20... g6
{[%clk 0:01:52.3]} 21. Rf4 {[%clk 0:01:38.5]} 21... Nd7 {[%clk 0:01:49.8]} 22.
Rdf1 {[%clk 0:01:29.3]} 22... Rce8 {[%clk 0:01:34.3]} 23. Qf2 {[%clk 0:01:18.5]}
23... Qe6 {[%clk 0:01:20.2]} 24. Bd3 {[%clk 0:00:59.7]} 24... Bd6 {[%clk
0:01:09.4]} 25. Qh4 {[%clk 0:00:50.9]} 25... Nxe5 {[%clk 0:01:06.3]} 26. dxe5
{[%clk 0:00:51.8]} 26... Bxe5 {[%clk 0:01:06.2]} 27. Bxe5 {[%clk 0:00:45.4]}
27... Qxe5 {[%clk 0:01:06.4]} 28. Qf2 {[%clk 0:00:29.9]} 28... Be6 {[%clk
0:01:00.6]} 29. Rf6 {[%clk 0:00:27.8]} 29... Rd8 {[%clk 0:00:57.9]} 30. Bb1
{[%clk 0:00:21.2]} 30... Qd4 {[%clk 0:00:57.5]} 31. Qxd4 {[%clk 0:00:16.4]}
31... Rxd4 {[%clk 0:00:58.4]} 32. R6f4 {[%clk 0:00:17]} 32... Rfd8 {[%clk
0:00:56.7]} 33. Rxd4 {[%clk 0:00:16.4]} 33... Rxd4 {[%clk 0:00:56.8]} 34. h3
{[%clk 0:00:16]} 34... Kg7 {[%clk 0:00:55]} 35. Bc2 {[%clk 0:00:16.3]} 35... b4
{[%clk 0:00:54.3]} 36. Rd1 {[%clk 0:00:14.3]} 36... Rxd1+ {[%clk 0:00:53.6]} 37.
Bxd1 {[%clk 0:00:15.2]} 37... Kf6 {[%clk 0:00:53.8]} 38. Kf2 {[%clk 0:00:16]}
38... Ke5 {[%clk 0:00:53.9]} 39. Ke3 {[%clk 0:00:16.3]} 39... a5 {[%clk
0:00:53.1]} 40. h4 {[%clk 0:00:15.9]} 40... h6 {[%clk 0:00:50.9]} 41. g3 {[%clk
0:00:16.3]} 41... Bf5 {[%clk 0:00:44.7]} 0-1

[Event "Early-Titled-Tuesday-Blitz-January-23-2024"]
[Site "Chess.com"]
[Date "2024.01.23"]
[Round "7"]
[White "Seochesspie"]
[Black "CarlosjPineror"]
[Result "1-0"]
[WhiteElo "2794"]
[BlackElo "2604"]
[TimeControl "180+1"]
[EndTime "9:17:23 PST"]
[Termination "Seochesspie won by resignation"]

1. d4 {[%clk 0:03:00.9]} 1... Nf6 {[%clk 0:02:58]} 2. Nc3 {[%clk 0:03:00.9]}
2... d5 {[%clk 0:02:56.1]} 3. Bf4 {[%clk 0:03:01.2]} 3... c6 {[%clk 0:02:52.8]}
4. e3 {[%clk 0:03:00.4]} 4... g6 {[%clk 0:02:52.5]} 5. h3 {[%clk 0:02:55.2]}
5... Bg7 {[%clk 0:02:52.8]} 6. Nf3 {[%clk 0:02:55.5]} 6... O-O {[%clk
0:02:53.5]} 7. Bd3 {[%clk 0:02:54.9]} 7... Nh5 {[%clk 0:02:52.1]} 8. Bh2 {[%clk
0:02:54.8]} 8... f5 {[%clk 0:02:52.8]} 9. Ne2 {[%clk 0:02:53.2]} 9... Nd7 {[%clk
0:02:44]} 10. c4 {[%clk 0:02:53.2]} 10... e6 {[%clk 0:02:42]} 11. O-O {[%clk
0:02:53]} 11... dxc4 {[%clk 0:02:29.2]} 12. Bxc4 {[%clk 0:02:53]} 12... Nb6
{[%clk 0:02:29.9]} 13. Bd3 {[%clk 0:02:49.7]} 13... Nd5 {[%clk 0:02:30.2]} 14.
Ne5 {[%clk 0:02:47.5]} 14... Nhf6 {[%clk 0:02:27.7]} 15. Rb1 {[%clk 0:02:45.2]}
15... Nd7 {[%clk 0:02:27.1]} 16. Nc4 {[%clk 0:02:44.6]} 16... N7b6 {[%clk
0:02:24]} 17. Nd6 {[%clk 0:02:41.6]} 17... Nd7 {[%clk 0:01:53.7]} 18. b4 {[%clk
0:02:39.9]} 18... a6 {[%clk 0:01:42.7]} 19. a4 {[%clk 0:02:38.2]} 19... N7f6
{[%clk 0:01:36.8]} 20. Qb3 {[%clk 0:02:31.7]} 20... Ne8 {[%clk 0:01:34.7]} 21.
Nc4 {[%clk 0:02:30.3]} 21... Bd7 {[%clk 0:01:23.5]} 22. Nc3 {[%clk 0:02:27.5]}
22... f4 {[%clk 0:01:12.4]} 23. Nxd5 {[%clk 0:02:17.5]} 23... exd5 {[%clk
0:01:10.9]} 24. Na5 {[%clk 0:02:06.4]} 24... fxe3 {[%clk 0:01:06.6]} 25. fxe3
{[%clk 0:02:05]} 25... b6 {[%clk 0:00:57.2]} 26. Nb7 {[%clk 0:02:03.4]} 26...
Qe7 {[%clk 0:00:55.8]} 27. Rxf8+ {[%clk 0:01:55.3]} 27... Bxf8 {[%clk 0:00:55]}
28. b5 {[%clk 0:01:52.1]} 28... a5 {[%clk 0:00:38]} 29. e4 {[%clk 0:01:48.9]}
29... Ra7 {[%clk 0:00:28.8]} 30. exd5 {[%clk 0:01:46.8]} 30... cxd5 {[%clk
0:00:28.2]} 31. Nd8 {[%clk 0:01:07.3]} 31... Qxd8 {[%clk 0:00:22.6]} 32. Qxd5+
{[%clk 0:01:07.2]} 32... Kh8 {[%clk 0:00:22.5]} 33. Rf1 {[%clk 0:01:02.9]} 33...
Bg7 {[%clk 0:00:21.2]} 34. Rf7 {[%clk 0:01:00.3]} 34... Nf6 {[%clk 0:00:15.3]}
35. Qd6 {[%clk 0:00:55.8]} 35... Qe8 {[%clk 0:00:15]} 36. Re7 {[%clk 0:00:54.6]}
36... Qc8 {[%clk 0:00:14.8]} 37. Be5 {[%clk 0:00:52.9]} 37... Ne8 {[%clk
0:00:14.2]} 38. Bxg7+ {[%clk 0:00:47.2]} 38... Nxg7 {[%clk 0:00:13.2]} 39. Qf6
{[%clk 0:00:45.5]} 39... Qg8 {[%clk 0:00:08.3]} 40. Bc4 {[%clk 0:00:45]} 40...
Be6 {[%clk 0:00:08.2]} 41. Bxe6 {[%clk 0:00:43.5]} 41... Rxe7 {[%clk 0:00:07.6]}
42. Bxg8 {[%clk 0:00:43.5]} 42... Re1+ {[%clk 0:00:07.5]} 43. Kf2 {[%clk
0:00:42]} 1-0